bitfinex-derivatives/quotes_SOLF0:USTF0_20250415
["timestamp","ask_amount","ask_price","bid_price","bid_amount"]
[1744744058186,0.05773701,128.03,128.02,7.8119]
[1744744059387,7.86923701,128.03,128.01,37.36406532]
[1744744060287,7.86923701,128.03,128.01,29.55196532]
[1744744061487,0.05773701,128.03,128.01,37.36436532]
[1744744062587,0.05773701,128.03,128.02,7.8119]
[1744744062891,0.05773701,128.03,128.01,29.55196532]
[1744744063190,0.05773701,128.03,128.01,37.36386532]
[1744744064090,7.86903701,128.03,128.01,37.36386532]
[1744744066686,7.8119,128.02,128.01,0.05196532]
[1744744067594,50.59861423,128.02,127.94,29.5]
[1744744067789,13.27861423,127.97,127.94,29.5]
[1744744068092,7.8159,127.96,127.94,29.5]
[1744744068592,0.05535664,127.96,127.94,37.3166]
[1744744069095,0.05535664,127.96,127.95,7.8161]
[1744744069894,0.05535664,127.96,127.95,37.3161]
[1744744070694,15.29781423,128.03,127.98,7.8141]
[1744744070994,7.8129,128.01,127.98,37.3141]
[1744744071597,7.87130997,128.01,127.98,37.3699089]
[1744744072393,0.05840997,128.01,127.99,7.8136]
[1744744073091,0.05840997,128.01,127.98,29.5558089]
[1744744073692,0.05840997,128.01,127.99,13.27861423]
[1744744073893,13.27861423,128.09,127.99,15.42461423]
[1744744074093,13.27861423,128.09,128.01,13.27861423]
[1744744074391,13.27861423,128.09,128.04,7.8103]
[1744744074694,13.27861423,128.09,128.02,29.5]
[1744744074996,7.8098,128.06,128.04,0.04918291]
[1744744075195,0.05642883,128.07,128.04,0.04918291]
[1744744075494,7.8099,128.06,128.04,0.04918291]
[1744744075789,0.05642883,128.07,128.04,0.04918291]
[1744744076594,21.08861423,128.05,128.04,0.04918291]
[1744744076788,13.27861423,128.05,127.99,29.5]
[1744744077097,7.814,127.99,127.97,7.8146]
[1744744077492,13.27861423,128.02,127.97,7.8146]
[1744744077692,0.05771346,128.01,127.98,0.05682025]
[1744744078399,13.27861423,128.0,127.98,0.05682025]
[1744744079084,23.34471832,128.01,127.98,0.05682025]
[1744744080999,2.08481346,128.01,127.98,0.05682025]
[1744744081993,7.8131,128.0,127.98,7.87092025]
[1744744083801,0.05771346,128.01,127.98,0.05682025]
[1744744084006,0.05771346,128.01,127.99,29.5]
[1744744084299,7.87051346,128.01,127.99,29.5]
[1744744084799,0.05771346,128.01,128.0,7.8131]
[1744744086000,7.8103,128.05,128.02,7.8116]
[1744744086199,2.0791,128.06,128.02,37.3116]
[1744744086399,7.8101,128.05,128.02,37.3116]
[1744744086893,0.05310734,128.05,128.02,29.55671718]
[1744744087093,0.05310734,128.05,128.02,50.81662204]
[1744744087600,0.05310734,128.05,128.04,7.8105]
[1744744088097,7.34e-06,128.05,128.04,7.8105]
[1744744088798,7.8061,128.12,128.09,7.8073]
[1744744089001,7.8061,128.12,128.09,37.3073]
[1744744089401,7.8064,128.11,128.09,37.3073]
[1744744089703,57.17710486,128.17,128.09,37.3073]
[1744744089899,7.8054,128.13,128.12,0.05729068]
[1744744092401,7.85876126,128.14,128.12,29.53729068]
[1744744092804,52.8808,128.22,128.12,29.53729068]
[1744744093006,25.30030486,128.21,128.12,29.48]
[1744744093312,21.25990486,128.19,128.12,29.48]
[1744744093505,50.73990486,128.19,128.12,29.48]
[1744744093906,0.05459511,128.17,128.14,0.0544965]
[1744744094306,7.8037,128.16,128.14,0.0544965]
[1744744095009,0.05459511,128.17,128.14,0.0544965]
[1744744095202,0.05459511,128.17,128.15,29.48]
[1744744095404,0.05459511,128.17,128.15,37.2839]
[1744744096009,7.85739511,128.17,128.15,29.48]
[1744744096210,0.05459511,128.17,128.15,29.48]
[1744744097612,0.05459511,128.17,128.16,7.8033]
[1744744098816,4.2436,128.25,128.15,595.454]
[1744744099011,4.2436,128.25,128.16,21.25990486]
[1744744099314,7.8004,128.21,128.18,7.8019]
[1744744099516,21.25990486,128.24,128.15,595.454]
[1744744099812,0.05485443,128.21,128.2,7.8006]
[1744744100016,0.05546321,128.22,128.2,29.48]
[1744744100310,0.05546321,128.22,128.2,29.53079021]
[1744744100311,0.05751732,128.22,128.2,29.53079021]
[1744744100515,0.05751732,128.22,128.21,7.8001]
[1744744100719,0.05751732,128.22,128.2,29.53079021]
[1744744101617,17.30652686,128.29,128.2,42.76261707]
[1744744101815,17.30652686,128.29,128.22,13.23182686]
[1744744102016,7.7963,128.28,128.25,7.7978]
[1744744102216,1.9689,128.29,128.23,29.46]
[1744744102720,7.85514069,128.27,128.25,0.0547227]
[1744744103012,0.05814069,128.27,128.26,29.46]
[1744744103612,0.05814069,128.27,128.26,37.2572]
[1744744104213,2.0131,128.32,128.26,29.46]
[1744744104611,21.1559557,128.31,128.26,29.46]
[1744744104818,7.7966,128.27,128.26,29.46]
[1744744105022,50.6159557,128.31,128.23,591.08]
[1744744105218,0.05250082,128.28,128.26,0.05385472]
[1744744105416,0.05250082,128.28,128.26,29.51385472]
[1744744105820,7.84900082,128.28,128.26,29.51385472]
[1744744106217,0.05250082,128.28,128.26,29.51385472]
[1744744108224,0.05250082,128.28,128.27,7.7966]
[1744744109223,2.0521,128.35,128.28,7.7955]
[1744744109422,2.0521,128.35,128.29,29.44]
[1744744109618,7.7946,128.31,128.29,29.44]
[1744744110123,0.05469119,128.31,128.29,29.49649881]
[1744744111414,21.1559557,128.4,128.29,29.49649881]
[1744744111620,21.1559557,128.4,128.29,29.44]
[1744744111815,21.1559557,128.4,128.29,31.4272]
[1744744112018,21.1559557,128.4,128.32,7.7933]
[1744744112323,6.39,128.41,128.32,29.44]
[1744744112523,7.84072004,128.38,128.35,7.84583471]
[1744744112726,7.84072004,128.38,128.36,29.44]
[1744744113225,7.7906,128.37,128.36,29.44]
[1744744113725,7.84072004,128.38,128.36,29.44]
[1744744113927,0.05072004,128.38,128.36,29.44]
[1744744114225,7.84102004,128.38,128.36,29.44]
[1744744114427,0.05072004,128.38,128.36,29.44]
[1744744114926,7.84102004,128.38,128.36,29.44]
[1744744115524,0.05072004,128.38,128.36,29.44]
[1744744115926,7.7906,128.37,128.36,29.44]
[1744744116124,0.05072004,128.38,128.36,29.44]
[1744744116930,2.0672,128.44,128.36,50.5959557]
[1744744117228,29.42,128.53,128.42,21.1559557]
[1744744117528,27.4160557,128.53,128.43,29.42]
[1744744118028,7.83739565,128.49,128.47,0.05923403]
[1744744118427,0.05369565,128.49,128.47,0.05923403]
[1744744118630,7.7839,128.48,128.47,0.05923403]
[1744744119928,7.7854,128.46,128.43,29.42]
[1744744120127,21.1559557,128.47,128.4,561.1]
[1744744120323,21.1559557,128.43,128.36,29.42]
[1744744120523,21.1559557,128.41,128.36,29.42]
[1744744120726,29.42,128.44,128.36,37.2111]
[1744744120924,7.83867484,128.41,128.39,0.04937569]
[1744744121431,0.05007484,128.41,128.39,29.46937569]
[1744744123128,0.05007484,128.41,128.39,37.25837569]
[1744744123630,0.05007484,128.41,128.4,7.7887]
[1744744123826,29.42,128.48,128.39,29.46937569]
[1744744124033,4.0031,128.49,128.39,29.42]
[1744744124227,21.1559557,128.47,128.37,4.1647]
[1744744124433,21.1559557,128.47,128.4,29.42]
[1744744124634,29.42,128.48,128.4,29.42]
[1744744124835,0.0596278,128.45,128.43,0.0550802]
[1744744125428,0.0596278,128.45,128.43,7.8417802]
[1744744125633,0.0596278,128.45,128.44,29.4]
[1744744127134,29.4,128.52,128.44,29.4]
[1744744127335,21.1559557,128.54,128.44,31.3675]
[1744744127536,7.7826,128.51,128.47,7.7844]
[1744744127735,21.1559557,128.54,128.47,37.1844]
[1744744127939,21.1559557,128.54,128.47,29.4]
[1744744128235,7.7826,128.51,128.49,0.05224669]
[1744744128436,0.05430427,128.52,128.49,0.05224669]
[1744744129841,0.05430427,128.52,128.5,37.1827]
[1744744130343,0.05430427,128.52,128.5,29.4]
[1744744130536,7.83610427,128.52,128.5,29.4]
[1744744130738,0.05430427,128.52,128.5,29.4]
[1744744131039,0.05430427,128.52,128.51,7.7821]
[1744744131540,365.0,128.63,128.53,7.7804]
[1744744131541,21.1559557,128.6,128.53,7.7804]
[1744744131941,50.7559557,128.6,128.53,7.7804]
[1744744132439,50.7559557,128.6,128.53,29.6]
[1744744132741,7.7795,128.56,128.55,0.05118795]
[1744744133540,0.05697756,128.58,128.55,0.05118795]
[1744744134543,0.05697756,128.58,128.56,29.6]
[1744744134744,7.83497756,128.58,128.56,29.6]
[1744744134943,0.05697756,128.58,128.56,29.6]
[1744744135347,0.05697756,128.58,128.56,37.3787]
[1744744135840,0.05697756,128.58,128.56,29.6]
[1744744136447,7.7784,128.57,128.56,29.6]
[1744744136643,0.05697756,128.58,128.55,0.05118795]
[1744744137048,7.779,128.56,128.55,0.05118795]
[1744744137451,0.05697756,128.58,128.55,0.05118795]
[1744744137746,7.83517756,128.58,128.55,0.05118795]
[1744744138446,0.05697756,128.58,128.56,37.379]
[1744744138643,0.05697756,128.58,128.56,29.6]
[1744744139149,21.1559557,128.57,128.5,589.98]
[1744744139341,2.1281,128.56,128.5,29.6]
[1744744139542,7.7806,128.54,128.5,37.3822]
[1744744139747,2.1281,128.56,128.5,37.3822]
[1744744140243,0.0559833,128.54,128.52,0.05518756]
[1744744141249,7.8362833,128.54,128.52,0.05518756]
[1744744141442,0.0559833,128.54,128.52,0.05518756]
[1744744141750,0.0559833,128.54,128.52,7.83628756]
[1744744142146,0.0559833,128.54,128.52,0.05518756]
[1744744142447,0.0559833,128.54,128.53,29.58]
[1744744143247,0.0559833,128.54,128.53,37.3609]
[1744744145846,7.7776,128.59,128.56,7.7789]
[1744744146550,27.3434557,128.65,128.56,29.58]
[1744744146745,56.9234557,128.65,128.56,29.58]
[1744744146949,0.0512586,128.62,128.59,0.05720146]
[1744744147146,7.7766,128.6,128.59,0.05720146]
[1744744147451,0.0512586,128.62,128.59,0.05720146]
[1744744147639,7.8271586,128.62,128.59,7.83440146]
[1744744147841,0.0512586,128.62,128.59,0.05720146]
[1744744148345,7.7761,128.61,128.59,0.05720146]
[1744744148545,0.0512586,128.62,128.59,0.05720146]
[1744744148948,7.7766,128.6,128.59,0.05720146]
[1744744151451,0.0512586,128.62,128.59,0.05720146]
[1744744151849,0.0512586,128.62,128.59,29.63720146]
[1744744152152,7.7764,128.61,128.59,29.63720146]
[1744744152454,0.0512586,128.62,128.59,29.63720146]
[1744744154251,7.8269586,128.62,128.59,37.41410146]
[1744744154551,0.0512586,128.62,128.59,29.63720146]
[1744744155556,4.1364,128.68,128.59,29.63720146]
[1744744155755,4.1364,128.68,128.6,4.0513]
[1744744155959,7.775,128.63,128.6,7.7763]
[1744744156159,21.1559557,128.66,128.59,29.58]
[1744744156563,21.1559557,128.66,128.61,0.06003507]
[1744744156564,7.7754,128.62,128.61,0.06003507]
[1744744156762,0.049059,128.64,128.61,0.06003507]
[1744744157162,7.823559,128.64,128.61,7.83583507]
[1744744157462,0.049059,128.64,128.62,29.58]
[1744744158462,0.049059,128.64,128.62,37.3551]
[1744744158662,0.049059,128.64,128.61,29.64003507]
[1744744159667,0.049059,128.64,128.63,7.7748]
[1744744159862,0.049059,128.64,128.61,29.64003507]
[1744744160262,0.049059,128.64,128.63,7.7748]
[1744744160661,0.049059,128.64,128.61,0.06003507]
[1744744161372,7.7754,128.62,128.61,0.06003507]
[1744744161566,0.049059,128.64,128.61,0.06003507]
[1744744161763,7.7754,128.62,128.61,30.00003507]
[1744744162466,0.049059,128.64,128.61,30.00003507]
[1744744163467,0.049059,128.64,128.61,0.06003507]
[1744744164471,7.7751,128.63,128.61,0.06003507]
[1744744164873,0.049059,128.64,128.61,0.06003507]
[1744744165272,7.7754,128.62,128.61,0.06003507]
[1744744166565,0.049059,128.64,128.61,0.06003507]
[1744744167074,7.7754,128.62,128.61,0.06003507]
[1744744167572,0.049059,128.64,128.61,0.06003507]
[1744744167773,7.7754,128.62,128.61,0.06003507]
[1744744168471,0.049059,128.64,128.61,30.00003507]
[1744744169074,7.7754,128.62,128.61,0.06003507]
[1744744170478,21.2050147,128.64,128.61,0.06003507]
[1744744170976,7.7754,128.63,128.61,0.06003507]
[1744744171180,21.2050147,128.64,128.61,0.06003507]
[1744744171479,7.7748,128.63,128.61,0.06003507]
[1744744172171,7.7754,128.62,128.61,0.06003507]
[1744744172476,0.049059,128.64,128.61,30.00003507]
[1744744173478,13.20156563,128.64,128.61,0.06003507]
[1744744173679,20.97586563,128.64,128.61,7.83573507]
[1744744174380,7.7748,128.63,128.61,0.06003507]
[1744744174678,13.20156563,128.64,128.61,0.06003507]
[1744744174880,20.97616563,128.64,128.61,7.83573507]
[1744744175476,0.049059,128.64,128.63,7.7748]
[1744744175675,0.049059,128.64,128.63,29.94]
[1744744177081,0.049059,128.64,128.63,37.7148]
[1744744177482,255.53067838,128.76,128.63,29.94]
[1744744177678,19.47860663,128.71,128.63,29.94]
[1744744178479,29.94,128.74,128.63,43.09250663]
[1744744178684,13.15250663,128.73,128.66,0.05268818]
[1744744178886,7.7697,128.72,128.69,7.7708]
[1744744179186,21.01988711,128.7,128.68,0.05893315]
[1744744179381,28.79178711,128.68,128.64,7.7739]
[1744744179583,21.01988711,128.7,128.63,29.94]
[1744744179787,7.7715,128.69,128.65,7.7732]
[1744744179981,21.01988711,128.7,128.63,29.94]
[1744744180284,7.7724,128.67,128.65,0.05037037]
[1744744180484,0.05637893,128.68,128.65,0.05037037]
[1744744180785,7.7724,128.67,128.66,29.94]
[1744744181482,0.05637893,128.68,128.66,29.94]
[1744744182486,0.05637893,128.68,128.66,37.7128]
[1744744183587,0.05637893,128.68,128.66,29.94]
[1744744184386,21.07626604,128.68,128.65,0.05037037]
[1744744184588,7.7767,128.6,128.57,29.94]
[1744744184783,21.01988711,128.63,128.57,29.94]
[1744744185080,29.94,128.64,128.57,29.94]
[1744744185281,29.94,128.64,128.58,7.7774]
[1744744185479,29.94,128.64,128.6,0.05341386]
[1744744185480,0.05092431,128.62,128.6,0.05341386]
[1744744185683,0.05092431,128.62,128.57,29.94]
[1744744186078,21.01988711,128.61,128.57,29.94]
[1744744186290,21.01988711,128.61,128.54,34.1687]
[1744744186484,23.18628711,128.61,128.54,41.9489]
[1744744186688,7.7786,128.57,128.56,0.05828475]
[1744744187186,21.01988711,128.57,128.49,29.94]
[1744744187387,7.7812,128.53,128.49,29.94]
[1744744187990,0.04979189,128.52,128.5,0.0560604]
[1744744189185,7.83159189,128.52,128.5,0.0560604]
[1744744189487,0.04979189,128.52,128.5,0.0560604]
[1744744189682,21.069679,128.52,128.5,0.0560604]
[1744744189879,7.7835,128.49,128.46,29.94]
[1744744190379,7.7851,128.46,128.41,36.0986]
[1744744190578,21.01988711,128.48,128.42,7.7872]
[1744744190779,7.7862,128.45,128.44,0.05799481]
[1744744190986,21.07821266,128.46,128.43,0.0535482]
[1744744191381,7.7867,128.44,128.43,0.0535482]
[1744744192293,28.80658711,128.44,128.38,30.38]
[1744744192487,21.01988711,128.44,128.38,38.1697]
[1744744192792,21.01988711,128.44,128.38,30.38]
[1744744192994,21.01988711,128.42,128.38,30.38]
[1744744193196,28.80758711,128.42,128.38,30.38]
[1744744193388,0.05098638,128.41,128.39,0.05260801]
[1744744194693,21.01988711,128.4,128.34,7.7923]
[1744744195193,7.79,128.38,128.34,7.7923]
[1744744195795,0.04935216,128.37,128.35,0.05229109]
[1744744195984,466.41977422,128.36,128.14,15.6081]
[1744744196189,21.01988711,128.3,128.17,21.01988711]
[1744744196392,21.01988711,128.3,128.18,5.55059277]
[1744744196593,7.7967,128.27,128.19,30.38]
[1744744197096,0.05799358,128.24,128.22,0.0492529]
[1744744197494,0.05799358,128.24,128.22,30.4492529]
[1744744198097,0.05799358,128.24,128.22,0.0492529]
[1744744202200,0.05799358,128.24,128.22,7.8488529]
[1744744202495,0.05799358,128.24,128.22,0.0492529]
[1744744202699,21.07788069,128.24,128.22,0.0492529]
[1744744202894,21.07788069,128.24,128.18,42.3552]
[1744744203294,21.07788069,128.24,128.18,34.5534]
[1744744203902,0.05799358,128.24,128.2,0.05440903]
[1744744204094,0.05799358,128.24,128.21,30.42]
[1744744204701,0.05799358,128.24,128.22,7.7993]
[1744744205792,0.05799358,128.24,128.23,7.7991]
[1744744206301,30.42,128.3,128.26,7.7972]
[1744744206802,2.1404,128.31,128.26,7.7972]
[1744744207096,0.05033789,128.3,128.26,7.7972]
[1744744207399,7.7956,128.29,128.27,0.05966678]
[1744744207599,21.070225,128.3,128.27,0.05966678]
[1744744207802,7.7958,128.29,128.27,0.05966678]
[1744744209199,28.865125,128.3,128.27,0.05966678]
[1744744209399,0.05033789,128.3,128.27,30.49966678]
[1744744210407,0.05033789,128.3,128.29,7.7954]
[1744744214812,0.05033789,128.3,128.29,38.2354]
[1744744215310,0.05033789,128.3,128.27,0.05966678]
[1744744215508,7.84553789,128.3,128.27,0.05966678]
[1744744215710,21.070225,128.3,128.27,0.05966678]
[1744744215912,0.05033789,128.3,128.27,0.05966678]
[1744744216706,7.84543789,128.3,128.27,0.05966678]
[1744744216908,0.05033789,128.3,128.27,0.05966678]
[1744744217917,23.10358711,128.38,128.27,21.07955389]
[1744744218112,30.44,128.4,128.29,21.01988711]
[1744744218417,390.34928711,128.42,128.31,21.01988711]
[1744744218716,390.34928711,128.42,128.3,32.5089]
[1744744219014,0.05701955,128.36,128.33,0.05652883]
[1744744219206,0.05701955,128.36,128.34,30.44]
[1744744219409,0.05701955,128.36,128.35,7.7915]
[1744744221009,0.05701955,128.36,128.34,30.44]
[1744744221317,21.07690666,128.36,128.33,0.05652883]
[1744744221506,7.7924,128.34,128.33,0.05652883]
[1744744221710,21.01988711,128.34,128.28,591.48]
[1744744221914,4.1602,128.35,128.28,30.44]
[1744744222114,7.7931,128.33,128.3,7.7944]
[1744744222615,7.85269629,128.33,128.3,7.85006372]
[1744744222820,7.85269629,128.33,128.3,0.05566372]
[1744744223118,0.05959629,128.33,128.3,0.05566372]
[1744744223719,0.05959629,128.33,128.31,30.62]
[1744744224021,0.05959629,128.33,128.32,7.7936]
[1744744224322,0.05959629,128.33,128.31,30.62]
[1744744224723,0.05959629,128.33,128.31,38.4139]
[1744744225823,0.05959629,128.33,128.32,7.7936]
[1744744226019,2.0368,128.39,128.31,30.62]
[1744744226524,7.7903,128.38,128.35,7.7913]
[1744744226723,2.0368,128.39,128.35,30.62]
[1744744226918,7.7902,128.38,128.35,38.4113]
[1744744227126,0.05091893,128.38,128.35,30.67352488]
[1744744227727,0.05091893,128.38,128.36,7.7906]
[1744744229128,7.84091893,128.38,128.36,7.7906]
[1744744229327,0.05091893,128.38,128.35,30.67352488]
[1744744229532,7.7912,128.36,128.35,30.67352488]
[1744744229729,7.7912,128.36,128.35,0.05352488]
[1744744230125,0.05091893,128.38,128.35,0.05352488]
[1744744230324,0.05091893,128.38,128.35,30.67352488]
[1744744231223,0.05091893,128.38,128.37,7.7906]
[1744744232529,0.05091893,128.38,128.35,30.67352488]
[1744744233125,0.05091893,128.38,128.37,7.7906]
[1744744233930,0.05091893,128.38,128.36,7.791]
[1744744235632,0.05091893,128.38,128.37,7.7906]
[1744744237534,7.84101893,128.38,128.36,7.7908]
[1744744238133,0.05091893,128.38,128.37,7.7906]
[1744744238330,0.05091893,128.38,128.35,0.05352488]
[1744744238536,21.01988711,128.36,128.23,6.1189]
[1744744238836,21.01988711,128.3,128.23,2.0482]
[1744744239238,7.797,128.27,128.23,2.0482]
[1744744239436,0.05244172,128.26,128.24,0.05214702]
[1744744239941,7.85014172,128.26,128.24,0.05214702]
[1744744240335,0.05244172,128.26,128.24,0.05214702]
[1744744241637,7.84984172,128.26,128.24,0.05214702]
[1744744241850,0.05244172,128.26,128.24,0.05214702]
[1744744242139,7.7978,128.25,128.24,0.05214702]
[1744744242347,0.05244172,128.26,128.24,0.05214702]
[1744744243143,7.7978,128.25,128.24,0.05214702]
[1744744245443,7.7991,128.23,128.22,30.6]
[1744744246444,21.07232883,128.26,128.21,0.05900722]
[1744744246739,7.7997,128.22,128.21,0.05900722]
[1744744247243,7.7995,128.23,128.21,0.05900722]
[1744744247441,0.05091174,128.25,128.22,30.62]
[1744744248135,0.05091174,128.25,128.22,38.4194]
[1744744248640,0.05091174,128.25,128.23,7.799]
[1744744251146,7.84891174,128.25,128.22,38.4194]
[1744744251344,0.05091174,128.25,128.22,38.4194]
[1744744251646,7.84921174,128.25,128.22,38.4194]
[1744744251947,0.05091174,128.25,128.22,38.4194]
[1744744254146,7.7987,128.24,128.22,38.4194]
[1744744254943,0.05091174,128.25,128.21,0.05900722]
[1744744255148,21.01988711,128.24,128.21,0.05900722]
[1744744255543,7.7996,128.23,128.21,0.05900722]
[1744744255745,0.05091174,128.25,128.21,0.05900722]
[1744744257544,7.7995,128.23,128.21,0.05900722]
[1744744258046,0.05091174,128.25,128.22,30.26]
[1744744258551,0.05091174,128.25,128.22,32.3084]
[1744744259153,0.05091174,128.25,128.24,7.7985]
[1744744260355,0.05091174,128.25,128.23,7.7988]
[1744744260550,0.05091174,128.25,128.22,32.3084]
[1744744260848,7.84881174,128.25,128.22,30.26]
[1744744261048,0.05091174,128.25,128.22,30.26]
[1744744262253,7.7987,128.24,128.22,38.0594]
[1744744262451,0.05091174,128.25,128.22,38.0594]
[1744744262654,0.05091174,128.25,128.22,30.26]
[1744744262956,7.84881174,128.25,128.23,7.7988]
[1744744264754,0.05091174,128.25,128.23,7.7988]
[1744744265055,0.05091174,128.25,128.22,30.26]
[1744744265056,0.05091174,128.25,128.24,7.7985]
[1744744265249,7.7951,128.3,128.22,51.27988711]
[1744744265553,7.7951,128.3,128.28,7.7957]
[1744744265854,21.01988711,128.37,128.27,30.26]
[1744744266055,21.01988711,128.37,128.28,30.26]
[1744744266056,27.20158711,128.37,128.28,30.26]
[1744744266257,0.05870785,128.34,128.31,0.05224045]
[1744744266659,0.05870785,128.34,128.31,38.10634045]
[1744744267363,7.85130785,128.34,128.31,38.10634045]
[1744744267862,0.05870785,128.34,128.31,30.31224045]
[1744744268255,21.01988711,128.33,128.31,0.05224045]
[1744744269363,0.05870785,128.34,128.31,0.05224045]
[1744744269764,7.7935,128.33,128.31,0.05224045]
[1744744269956,21.01988711,128.33,128.31,0.05224045]
[1744744270156,21.01988711,128.33,128.28,30.24]
[1744744270362,21.01988711,128.31,128.25,591.5]
[1744744271163,7.7962,128.28,128.27,0.05228432]
[1744744274662,7.8536384,128.29,128.27,0.05228432]
[1744744274866,0.0579384,128.29,128.27,0.05228432]
[1744744275467,0.0579384,128.29,128.28,30.24]
[1744744275868,0.0579384,128.29,128.28,38.036]
[1744744279769,0.0579384,128.29,128.28,30.24]
[1744744280274,0.0579384,128.29,128.27,0.05228432]
[1744744280674,0.0579384,128.29,128.22,30.24]
[1744744280873,21.01988711,128.28,128.22,30.24]
[1744744281075,51.25988711,128.3,128.22,30.24]
[1744744281475,21.01988711,128.3,128.22,30.24]
[1744744281775,0.05944433,128.27,128.25,7.85740029]
[1744744281981,0.05944433,128.27,128.25,38.09740029]
[1744744282275,7.85644433,128.27,128.25,38.09740029]
[1744744282590,0.05944433,128.27,128.25,30.29980029]
[1744744283177,0.05944433,128.27,128.25,0.05980029]
[1744744283376,21.01988711,128.26,128.19,30.24]
[1744744283576,2.0315,128.25,128.19,30.24]
[1744744283778,2.0315,128.25,128.2,7.8005]
[1744744283981,2.0315,128.25,128.19,30.24]
[1744744284375,7.7997,128.22,128.21,0.05346118]
[1744744286880,7.85332576,128.23,128.21,0.05346118]
[1744744287081,416.01988711,128.3,128.21,0.05346118]
[1744744287280,4.2189,128.31,128.21,25.07048711]
[1744744287487,4.2189,128.31,128.21,27.22178711]
[1744744287690,7.7963,128.28,128.21,27.22178711]
[1744744287986,4.2189,128.31,128.21,27.22178711]
[1744744288182,7.84892237,128.27,128.25,0.05484508]
[1744744288885,7.84892237,128.27,128.25,7.85264508]
[1744744289084,7.7972,128.26,128.25,0.05484508]
[1744744293293,7.84882237,128.27,128.25,0.05484508]
[1744744293490,0.05202237,128.27,128.25,0.05484508]
[1744744294093,21.01988711,128.26,128.19,30.0]
[1744744294390,21.01988711,128.24,128.19,30.0]
[1744744294592,21.01988711,128.24,128.19,37.8014]
[1744744295190,7.8004,128.21,128.2,0.05156326]
[1744744295992,7.8,128.22,128.2,0.05156326]
[1744744296193,0.04898818,128.23,128.2,0.05156326]
[1744744297497,15.603,128.19,128.12,1.35730723]
[1744744297794,21.01988711,128.14,128.02,2.0341]
[1744744298099,21.01988711,128.06,127.99,106.62960569]
[1744744298299,7.811,128.04,127.99,106.62960569]
[1744744298604,0.05323436,128.04,128.01,97.79484674]
[1744744299299,5.91412862,128.03,128.02,23.37730142]
[1744744299496,37.8312,128.03,128.02,23.37730142]
[1744744299698,7.8112,128.03,128.02,23.37730142]
[1744744300196,13.7066258,128.03,128.02,23.37730142]
[1744744300495,7.8112,128.03,128.02,20.09700142]
[1744744301197,7.8112,128.03,128.02,10.25550142]
[1744744301398,7.8119,128.02,128.01,71.13744532]
[1744744301599,21.01988711,128.02,127.94,1.9717]
[1744744302199,7.814,127.99,127.94,9.7884]
[1744744302701,7.86511262,127.99,127.96,30.0790452]
[1744744303191,0.05111262,127.99,127.96,30.0790452]
[1744744304301,7.8149,127.97,127.96,30.0790452]
[1744744305602,7.8149,127.97,127.96,0.0590452]
[1744744305902,7.8144,127.98,127.96,0.0590452]
[1744744306903,7.8149,127.97,127.96,0.0590452]
[1744744307204,0.05111262,127.99,127.96,0.0590452]
[1744744307405,7.8147,127.98,127.96,0.0590452]
[1744744308407,7.8149,127.97,127.96,0.0590452]
[1744744312610,0.05111262,127.99,127.96,0.0590452]
[1744744312806,0.05111262,127.99,127.96,30.1190452]
[1744744313212,7.86511262,127.99,127.96,30.1190452]
[1744744314711,7.86511262,127.99,127.96,37.9345452]
[1744744316714,0.05111262,127.99,127.97,7.8147]
[1744744320518,7.8125,128.01,127.96,30.1190452]
[1744744320714,613.41988711,128.06,127.96,30.06]
[1744744321017,7.8126,128.01,127.98,7.814]
[1744744321518,7.86544726,128.01,127.98,7.86510175]
[1744744321719,0.05284726,128.01,127.99,30.4]
[1744744321918,0.05284726,128.01,127.99,32.5317]
[1744744322517,51.41988711,128.06,127.99,32.5317]
[1744744323019,21.01988711,128.06,127.99,32.5317]
[1744744323417,0.05022144,128.04,128.01,0.05654985]
[1744744323618,51.41988711,128.1,128.02,30.4]
[1744744324120,21.01988711,128.08,128.02,30.4]
[1744744324416,21.01988711,128.08,128.0,2.0109]
[1744744324921,7.8109,128.04,128.03,0.05475597]
[1744744326122,7.86672296,128.05,128.03,0.05475597]
[1744744326322,0.05642296,128.05,128.03,0.05475597]
[1744744327224,7.8106,128.04,128.03,0.05475597]
[1744744327727,7.86672296,128.05,128.03,0.05475597]
[1744744328723,7.86672296,128.05,128.03,7.86595597]